[Event "RUS-ch Girls U21 2020"]
[Site "Moscow"]
[Date "2020.12.12"]
[Round "5.1"]
[White "Obolentseva, Alexandra"]
[Black "Protopopova, Anastasiya"]
[Result "0-1"]
[ECO "A04"]
[WhiteElo "2305"]
[BlackElo "2267"]
[Annotator "ChessBase"]
[PlyCount "132"]
[EventDate "2020.12.08"]
[EventType "tourn"]
[EventCountry "RUS"]
[SourceTitle "playchess.com"]
[Source "ChessBase"]
[SourceQuality "1"]
[TimeControl "40/5400+30:1800+30"]

1. Nf3 {[%emt 0:00:00]} c5 {[%emt 0:00:00]} 2. c4 {[%emt 0:01:39]} Nc6 {[%emt 0:00:00]} 3. g3 {[%emt 0:00:26]} g6 {[%emt 0:00:58]} 4. Bg2 {[%emt 0:00:14]} Bg7 {[%emt 0:00:08]} 5. O-O {[%emt 0:00:11]} e5 {[%emt 0:00:06]} 6. Nc3 {[%emt 0:00:27]} Nge7 {[%emt 0:00:07]} 7. a3 {[%emt 0:01:18]} a5 {[%emt 0:00:24]} 8. d3 {[%emt 0:01:09]} O-O {[%emt 0:01:51]} 9. Nd2 {[%emt 0:01:29]} d6 {[%emt 0:00:52]} 10. Re1 {[%emt 0:07:55]} f5 {[%emt 0:04:21]} 11. Nf1 {[%emt 0:01:28]} f4 {[%emt 0:03:59]} 12. Bd2 {[%emt 0:12:05]} Bg4 {[%emt 0:14:48]} 13. Nd5 {[%emt 0:03:34]} g5 {[%emt 0:09:34]} 14. Bc3 {[%emt 0:03:28]} Kh8 {[%emt 0:07:07]} 15. Qd2 {[%emt 0:04:08]} Rb8 {[%emt 0:12:16]} 16. Rab1 {[%emt 0:03:25]} Nxd5 {[%emt 0:02:59]} 17. cxd5 {[%emt 0:02:40]} Nd4 {[%emt 0:01:01]} 18. Bxd4 {[%emt 0:05:53]} exd4 {[%emt 0:08:17]} 19. b4 {[%emt 0:06:47]} axb4 {[%emt 0:00:30]} 20. axb4 {[%emt 0:00:30]} b6 {[%emt 0:03:52]} 21. Qc2 {[%emt 0:02:50]} Re8 {[%emt 0:02:30]} 22. Be4 {[%emt 0:00:47]} Qd7 {[%emt 0:09:32]} 23. Nd2 {[%emt 0:02:14]} Bh5 {[%emt 0:03:07]} 24. bxc5 dxc5 {[%emt 0:00:30]} 25. Nc4 {[%emt 0:02:35]} b5 {[%emt 0:01:34]} 26. Na5 {[%emt 0:00:09]} Bf8 {[%emt 0:04:16]} 27. Nc6 {[%emt 0:00:08]} Rb6 {[%emt 0:01:40]} 28. Ra1 {[%emt 0:02:00]} Qh3 {[%emt 0:01:27]} 29. Bg2 {[%emt 0:03:13]} Qf5 {[%emt 0:00:03]} 30. Qd2 {[%emt 0:02:03]} Rb7 {[%emt 0:02:06]} 31. Be4 {[%emt 0:01:33]} Qf7 {[%emt 0:01:51]} 32. Ra6 {[%emt 0:00:55]} b4 {[%emt 0:00:13]} 33. Rea1 {[%emt 0:00:28]} Bg6 {[%emt 0:01:02]} 34. Bf3 {[%emt 0:00:37]} b3 {[%emt 0:00:35]} 35. Rb1 {[%emt 0:00:25]} c4 {[%emt 0:00:29]} 36. Nxd4 {[%emt 0:00:49]} Bg7 {[%emt 0:00:01]} 37. Qc3 {[%emt 0:01:46]} cxd3 {[%emt 0:00:35]} 38. exd3 {[%emt 0:02:26]} fxg3 {[%emt 0:00:24]} 39. Qc4 {[%emt 0:01:18]} g4 {[%emt 0:00:39]} 40. hxg3 {[%emt 0:00:00]} gxf3 {[%emt 0:00:00]} 41. Re6 {[%emt 0:11:58]} Reb8 {[%emt 0:09:18]} 42. Nc6 {[%emt 0:04:37]} Ra8 {[%emt 0:00:23]} 43. Na5 {[%emt 0:02:33]} Qf5 {[%emt 0:05:01]} 44. Ra6 {[%emt 0:06:12]} Rc8 {[%emt 0:04:29]} 45. g4 {[%emt 0:02:13]} Qf8 {[%emt 0:02:17]} 46. Rc6 {[%emt 0:00:49]} Rxc6 {[%emt 0:00:18]} 47. dxc6 {[%emt 0:00:07]} Rb4 {[%emt 0:00:05]} 48. Qe6 {[%emt 0:00:42]} Bf7 {[%emt 0:05:52]} 49. Qf5 {[%emt 0:03:58]} Qe7 {[%emt 0:00:17]} 50. Qc8+ {[%emt 0:01:45]} Bf8 {[%emt 0:01:21]} 51. Qf5 {[%emt 0:03:16]} Qe6 {[%emt 0:02:37]} 52. Qxf3 {[%emt 0:01:30]} Qxg4+ {[%emt 0:00:09]} 53. Qxg4 {[%emt 0:00:08]} Rxg4+ {[%emt 0:00:02]} 54. Kf1 {[%emt 0:00:09]} Bd6 {[%emt 0:01:26]} 55. Nc4 {[%emt 0:04:30]} Bc7 {[%emt 0:02:26]} 56. Ke2 {[%emt 0:04:58]} h5 {[%emt 0:00:26]} 57. f3 {[%emt 0:01:08]} Rg2+ {[%emt 0:00:45]} 58. Ke3 {[%emt 0:01:08]} Bxc4 {[%emt 0:00:26]} 59. dxc4 {[%emt 0:00:28]} b2 {[%emt 0:00:11]} 60. f4 {[%emt 0:00:20]} h4 {[%emt 0:00:20]} 61. Kf3 {[%emt 0:00:19]} h3 {[%emt 0:00:27]} 62. Rh1 {[%emt 0:00:33]} Kg7 {[%emt 0:00:10]} 63. Re1 {[%emt 0:00:20]} Kf6 {[%emt 0:00:10]} 64. c5 {[%emt 0:00:04]} Rc2 {[%emt 0:00:16]} 65. Rb1 {[%emt 0:00:07]} h2 {[%emt 0:00:16]} 66. Kg3 Rc1 {[%emt 0:00:14]} 0-1

[Event "RUS-ch Girls U21 2020"]
[Site "Moscow"]
[Date "2020.12.12"]
[Round "5.2"]
[White "Nazarova, Anastasia"]
[Black "Shafigullina, Zarina"]
[Result "1/2-1/2"]
[ECO "B52"]
[WhiteElo "2190"]
[BlackElo "2302"]
[Annotator "ChessBase"]
[PlyCount "152"]
[EventDate "2020.12.08"]
[EventType "tourn"]
[EventCountry "RUS"]
[SourceTitle "playchess.com"]
[Source "ChessBase"]
[SourceQuality "1"]
[TimeControl "40/5400+30:1800+30"]

1. e4 {[%emt 0:00:00]} c5 {[%emt 0:00:00]} 2. Nf3 {[%emt 0:00:00]} d6 {[%emt 0:00:00]} 3. Bb5+ Bd7 {[%emt 0:11:40]} 4. Bxd7+ {[%emt 0:00:00]} Qxd7 {[%emt 0:00:10]} 5. O-O {[%emt 0:00:08]} Nf6 {[%emt 0:01:13]} 6. Re1 {[%emt 0:00:08]} Nc6 {[%emt 0:00:42]} 7. c3 {[%emt 0:00:05]} e6 {[%emt 0:05:23]} 8. d4 {[%emt 0:00:05]} d5 {[%emt 0:00:13]} 9. exd5 {[%emt 0:38:11]} Qxd5 {[%emt 0:00:40]} 10. Be3 {[%emt 0:00:12]} O-O-O {[%emt 0:08:04]} 11. Qa4 {[%emt 0:09:52]} Bd6 {[%emt 0:04:15]} 12. c4 {[%emt 0:11:44]} Qh5 {[%emt 0:00:55]} 13. dxc5 {[%emt 0:00:31]} Bxc5 {[%emt 0:01:09]} 14. Bxc5 {[%emt 0:07:50]} Qxc5 {[%emt 0:00:08]} 15. Nc3 {[%emt 0:00:12]} Kb8 {[%emt 0:05:52]} 16. a3 {[%emt 0:05:33]} a6 {[%emt 0:06:52]} 17. Ne4 {[%emt 0:06:52]} Nxe4 {[%emt 0:01:51]} 18. Rxe4 {[%emt 0:00:01]} Qf5 {[%emt 0:01:29]} 19. Rae1 {[%emt 0:00:14]} g5 {[%emt 0:06:16]} 20. b4 {[%emt 0:06:02]} g4 {[%emt 0:02:25]} 21. Nh4 {[%emt 0:01:09]} b5 {[%emt 0:22:46]} 22. Qb3 {[%emt 0:02:57]} Qg5 {[%emt 0:02:22]} 23. Qg3+ {[%emt 0:00:58]} Kb7 {[%emt 0:00:10]} 24. Rxg4 {[%emt 0:00:34]} Qe5 {[%emt 0:03:16]} 25. Nf3 {[%emt 0:02:50]} Qxg3 {[%emt 0:05:56]} 26. hxg3 {[%emt 0:00:01]} Rhg8 {[%emt 0:00:23]} 27. Rh4 {[%emt 0:01:44]} Rg7 {[%emt 0:00:34]} 28. cxb5 {[%emt 0:02:11]} axb5 {[%emt 0:00:05]} 29. Rh5 {[%emt 0:00:59]} Kb6 {[%emt 0:00:49]} 30. Rc5 {[%emt 0:00:45]} Rd6 {[%emt 0:01:33]} 31. Ne5 {[%emt 0:01:03]} Nd4 {[%emt 0:01:03]} 32. a4 {[%emt 0:01:15]} f6 {[%emt 0:01:01]} 33. a5+ {[%emt 0:00:03]} Ka6 {[%emt 0:01:07]} 34. Nf3 {[%emt 0:00:15]} Nc6 {[%emt 0:01:05]} 35. Re4 {[%emt 0:00:59]} e5 {[%emt 0:00:52]} 36. Nh4 {[%emt 0:01:03]} Nd4 {[%emt 0:03:49]} 37. g4 {[%emt 0:00:11]} Rg5 {[%emt 0:01:00]} 38. Rc8 {[%emt 0:01:23]} h5 {[%emt 0:00:16]} 39. gxh5 {[%emt 0:00:42]} Rxh5 {[%emt 0:00:06]} 40. g3 {[%emt 0:00:00]} Nc6 {[%emt 0:00:00]} 41. Rf8 {[%emt 0:12:38]} Rg5 {[%emt 0:13:18]} 42. Nf3 {[%emt 0:02:30]} Rg7 {[%emt 0:00:53]} 43. Kg2 {[%emt 0:01:20]} Rc7 {[%emt 0:02:34]} 44. Rg4 {[%emt 0:06:14]} Ne7 {[%emt 0:02:57]} 45. Nh4 {[%emt 0:03:29]} Kb7 {[%emt 0:09:13]} 46. Rf7 {[%emt 0:02:09]} Rdc6 {[%emt 0:02:20]} 47. Rgg7 {[%emt 0:04:21]} Nd5 {[%emt 0:00:05]} 48. Nf5 {[%emt 0:00:19]} Rxf7 {[%emt 0:01:55]} 49. Rxf7+ {[%emt 0:00:08]} Rc7 {[%emt 0:00:05]} 50. Nd6+ {[%emt 0:02:01]} Kc6 {[%emt 0:00:36]} 51. Rxc7+ {[%emt 0:00:15]} Nxc7 {[%emt 0:00:14]} 52. Ne4 {[%emt 0:00:06]} Nd5 {[%emt 0:03:07]} 53. g4 {[%emt 0:00:06]} Nxb4 {[%emt 0:00:44]} 54. Nxf6 {[%emt 0:00:05]} Nd3 {[%emt 0:00:22]} 55. Kf3 {[%emt 0:00:43]} b4 {[%emt 0:00:28]} 56. Ke3 {[%emt 0:00:29]} Nc5 {[%emt 0:00:40]} 57. g5 {[%emt 0:01:09]} b3 {[%emt 0:00:55]} 58. Kd2 {[%emt 0:00:15]} Kb5 {[%emt 0:00:21]} 59. g6 {[%emt 0:00:38]} Ne6 {[%emt 0:00:23]} 60. Ne8 {[%emt 0:01:31]} Kxa5 {[%emt 0:00:35]} 61. g7 {[%emt 0:00:13]} Nxg7 {[%emt 0:00:04]} 62. Nxg7 {[%emt 0:00:03]} Kb4 {[%emt 0:00:10]} 63. Kc1 {[%emt 0:01:06]} Kc3 {[%emt 0:00:10]} 64. Nf5 {[%emt 0:00:34]} Kd3 {[%emt 0:00:18]} 65. Ng3 {[%emt 0:00:42]} Kc3 {[%emt 0:01:23]} 66. Ne2+ {[%emt 0:00:33]} Kd3 {[%emt 0:00:10]} 67. Ng1 {[%emt 0:00:33]} Kc3 {[%emt 0:00:45]} 68. Kb1 {[%emt 0:00:33]} Kd2 {[%emt 0:00:54]} 69. Kb2 {[%emt 0:00:08]} Ke1 {[%emt 0:00:14]} 70. Nh3 {[%emt 0:00:39]} Kf1 {[%emt 0:00:06]} 71. Kxb3 {[%emt 0:00:14]} Kg2 {[%emt 0:00:06]} 72. Kc4 {[%emt 0:00:55]} Kxh3 {[%emt 0:00:22]} 73. Kd3 {[%emt 0:00:28]} Kg2 {[%emt 0:00:08]} 74. Ke2 {[%emt 0:00:35]} e4 {[%emt 0:00:21]} 75. Ke3 {[%emt 0:00:03]} Kg1 {[%emt 0:00:08]} 76. Kxe4 {[%emt 0:00:03]} Kxf2 {[%emt 0:00:04]} 1/2-1/2

[Event "RUS-ch Girls U21 2020"]
[Site "Moscow"]
[Date "2020.12.12"]
[Round "5.3"]
[White "Korchagina, Alena"]
[Black "Dimitrova, Aleksandra"]
[Result "1/2-1/2"]
[ECO "A17"]
[WhiteElo "2161"]
[BlackElo "2193"]
[Annotator "NA"]
[PlyCount "66"]
[EventDate "2020.12.08"]
[EventType "tourn"]
[EventCountry "RUS"]
[SourceTitle "playchess.com"]
[Source "ChessBase"]
[SourceQuality "1"]
[TimeControl "40/5400+30:1800+30"]

1. Nf3 {[%emt 0:00:00]} Nf6 {[%emt 0:00:00]} 2. c4 {[%emt 0:00:00]} e6 {[%emt 0:00:00]} 3. Nc3 {[%emt 0:00:00]} Bb4 {[%emt 0:00:00]} 4. Qc2 {[%emt 0:00:00]} O-O {[%emt 0:00:00]} 5. a3 {[%emt 0:00:00]} Bxc3 {[%emt 0:00:03]} 6. Qxc3 {[%emt 0:00:00]} a5 {[%emt 0:00:06]} 7. b4 {[%emt 0:12:31]} d6 {[%emt 0:00:10]} 8. Bb2 {[%emt 0:04:07]} e5 {[%emt 0:00:11]} 9. d3 {[%emt 0:00:21]} axb4 {[%emt 0:08:07]} 10. axb4 {[%emt 0:00:06]} Rxa1+ {[%emt 0:00:03]} 11. Bxa1 {[%emt 0:00:04]} b5 {[%emt 0:00:12]} 12. e3 {[%emt 0:05:03]} Bb7 {[%emt 0:17:41]} 13. Be2 {[%emt 0:00:21]} bxc4 {[%emt 0:05:02]} 14. dxc4 {[%emt 0:00:56]} Nbd7 {[%emt 0:03:08]} 15. O-O {[%emt 0:00:35]} c5 {[%emt 0:02:22]} 16. Rd1 {[%emt 0:05:50]} Ne4 {[%emt 0:06:47]} 17. Qb2 {[%emt 0:00:50]} Qf6 {[%emt 0:18:16]} 18. b5 {[%emt 0:11:36]} g5 {[%emt 0:02:02]} 19. Bd3 {[%emt 0:04:35]} g4 {[%emt 0:02:43]} 20. Bxe4 {[%emt 0:01:46]} Bxe4 {[%emt 0:00:09]} 21. Nd2 {[%emt 0:01:13]} Bb7 {[%emt 0:00:51]} 22. Qc2 {[%emt 0:00:32]} Nb6 {[%emt 0:02:39]} 23. Bb2 {[%emt 0:15:23]} Qe6 {[%emt 0:05:35]} 24. Ra1 {[%emt 0:07:29]} f5 {[%emt 0:00:17]} 25. Ra7 {[%emt 0:01:53]} Rf7 {[%emt 0:00:31]} 26. Qc3 {[%emt 0:03:50]} f4 {[%emt 0:07:58]} 27. exf4 {[%emt 0:04:28]} Nc8 {[%emt 0:00:19]} 28. Rxb7 {[%emt 0:05:53]} Rxb7 {[%emt 0:00:06]} 29. fxe5 {[%emt 0:00:05]} Qxe5 {[%emt 0:02:26]} 30. Qc1 {[%emt 0:06:14]} Qf5 {[%emt 0:05:41]} 31. Qc3 {[%emt 0:00:14]} Qe5 {[%emt 0:00:15]} 32. Qc1 {[%emt 0:00:42]} Qf5 {[%emt 0:04:29]} 33. Qc3 {[%emt 0:00:14]} Qe5 {[%emt 0:00:03]} 1/2-1/2

[Event "RUS-ch Girls U21 2020"]
[Site "Moscow"]
[Date "2020.12.12"]
[Round "5.4"]
[White "Afonasieva, Anna"]
[Black "Nosacheva, Mariya"]
[Result "1/2-1/2"]
[ECO "A45"]
[WhiteElo "2316"]
[BlackElo "2243"]
[Annotator "ChessBase"]
[PlyCount "80"]
[EventDate "2020.12.08"]
[EventType "tourn"]
[EventCountry "RUS"]
[SourceTitle "playchess.com"]
[Source "ChessBase"]
[SourceQuality "1"]
[TimeControl "40/5400+30:1800+30"]

1. d4 {[%emt 0:00:00]} Nf6 {[%emt 0:00:00]} 2. Bf4 {[%emt 0:00:00]} g6 {[%emt 0:00:00]} 3. e3 {[%emt 0:00:00]} Bg7 {[%emt 0:00:00]} 4. Nf3 {[%emt 0:00:00]} O-O {[%emt 0:00:08]} 5. h3 {[%emt 0:00:00]} d6 {[%emt 0:00:04]} 6. Be2 {[%emt 0:00:02]} c5 {[%emt 0:00:06]} 7. c3 {[%emt 0:00:12]} Be6 {[%emt 0:00:53]} 8. Nbd2 {[%emt 0:02:55]} Nc6 {[%emt 0:01:10]} 9. O-O {[%emt 0:01:56]} Qb6 {[%emt 0:00:52]} 10. Qb1 {[%emt 0:03:50]} cxd4 {[%emt 0:03:03]} 11. exd4 {[%emt 0:03:54]} Rac8 {[%emt 0:02:30]} 12. Bd3 {[%emt 0:05:47]} Bd5 {[%emt 0:03:16]} 13. Re1 {[%emt 0:02:22]} Rfe8 {[%emt 0:00:28]} 14. Be3 {[%emt 0:08:58]} Na5 {[%emt 0:03:40]} 15. Bc2 {[%emt 0:06:26]} Qa6 {[%emt 0:04:03]} 16. Qd1 {[%emt 0:03:12]} Rc7 {[%emt 0:12:26]} 17. Nf1 {[%emt 0:04:20]} Nc4 {[%emt 0:01:43]} 18. Bc1 {[%emt 0:00:34]} b5 {[%emt 0:00:24]} 19. a4 {[%emt 0:04:28]} bxa4 {[%emt 0:11:54]} 20. Bxa4 {[%emt 0:02:59]} Rb8 {[%emt 0:00:28]} 21. Qe2 {[%emt 0:03:23]} Qc8 {[%emt 0:09:33]} 22. b3 {[%emt 0:03:35]} Nb6 {[%emt 0:03:08]} 23. c4 {[%emt 0:00:34]} Nxa4 {[%emt 0:00:07]} 24. Rxa4 {[%emt 0:00:11]} Rxb3 {[%emt 0:17:05]} 25. cxd5 {[%emt 0:06:05]} Rxc1 {[%emt 0:00:15]} 26. Rxc1 {[%emt 0:02:57]} Qxc1 {[%emt 0:00:00]} 27. Qxe7 {[%emt 0:06:34]} Rb1 {[%emt 0:00:22]} 28. N3h2 {[%emt 0:00:30]} Qc8 {[%emt 0:05:46]} 29. Qxd6 {[%emt 0:02:43]} Rb7 {[%emt 0:00:38]} 30. Ne3 {[%emt 0:03:46]} Ne4 {[%emt 0:00:23]} 31. Qc6 {[%emt 0:00:30]} Rc7 32. Qa6 {[%emt 0:01:36]} Qxa6 {[%emt 0:01:05]} 33. Rxa6 {[%emt 0:08:12]} Bxd4 {[%emt 0:05:14]} 34. Nf3 {[%emt 0:00:04]} Bxe3 {[%emt 0:00:13]} 35. fxe3 {[%emt 0:01:57]} Rd7 {[%emt 0:01:29]} 36. Nd4 {[%emt 0:00:55]} Kg7 {[%emt 0:01:41]} 37. Nc6 {[%emt 0:02:13]} Nc3 {[%emt 0:00:06]} 38. Rxa7 {[%emt 0:00:03]} Rxa7 {[%emt 0:00:25]} 39. Nxa7 {[%emt 0:00:00]} Nxd5 {[%emt 0:00:00]} 40. Kf2 Kf6 1/2-1/2

[Event "RUS-ch Girls U21 2020"]
[Site "Moscow"]
[Date "2020.12.12"]
[Round "5.5"]
[White "Kochukova, Anna"]
[Black "Borisova, Ekaterina"]
[Result "1-0"]
[ECO "C07"]
[WhiteElo "2111"]
[BlackElo "2308"]
[Annotator "ChessBase"]
[PlyCount "119"]
[EventDate "2020.12.08"]
[EventType "tourn"]
[EventCountry "RUS"]
[SourceTitle "playchess.com"]
[Source "ChessBase"]
[SourceQuality "1"]
[TimeControl "40/5400+30:1800+30"]

1. e4 {[%emt 0:00:00]} e6 {[%emt 0:00:00]} 2. d4 {[%emt 0:01:08]} d5 {[%emt 0:00:00]} 3. Nd2 {[%emt 0:00:42]} c5 {[%emt 0:00:00]} 4. Ngf3 {[%emt 0:00:22]} cxd4 {[%emt 0:00:00]} 5. Nxd4 {[%emt 0:03:31]} Nc6 {[%emt 0:00:08]} 6. Nxc6 {[%emt 0:05:26]} bxc6 {[%emt 0:00:07]} 7. Bd3 {[%emt 0:00:32]} Nf6 {[%emt 0:00:08]} 8. O-O {[%emt 0:01:31]} Be7 {[%emt 0:00:09]} 9. Re1 {[%emt 0:03:03]} O-O {[%emt 0:01:34]} 10. e5 {[%emt 0:02:20]} Nd7 {[%emt 0:00:28]} 11. c3 {[%emt 0:03:29]} a5 {[%emt 0:09:25]} 12. Qh5 {[%emt 0:05:58]} f5 {[%emt 0:06:13]} 13. Nf3 {[%emt 0:01:09]} Nc5 {[%emt 0:01:28]} 14. Bc2 {[%emt 0:05:40]} Ba6 {[%emt 0:15:53]} 15. Nd4 {[%emt 0:07:54]} Qd7 {[%emt 0:02:37]} 16. Re3 {[%emt 0:02:59]} g6 {[%emt 0:03:04]} 17. Rg3 {[%emt 0:03:15]} Rf7 {[%emt 0:03:01]} 18. Bh6 {[%emt 0:04:59]} Kh8 {[%emt 0:05:17]} 19. Qh3 {[%emt 0:04:01]} Ne4 {[%emt 0:02:01]} 20. Bxe4 {[%emt 0:08:25]} dxe4 {[%emt 0:00:11]} 21. Bg5 {[%emt 0:01:45]} Bxg5 {[%emt 0:02:17]} 22. Rxg5 {[%emt 0:00:02]} c5 {[%emt 0:00:43]} 23. Nb3 {[%emt 0:01:03]} a4 {[%emt 0:04:37]} 24. Nxc5 {[%emt 0:01:24]} Qe7 {[%emt 0:00:05]} 25. Qe3 {[%emt 0:03:02]} Bb5 {[%emt 0:13:11]} 26. h4 {[%emt 0:06:32]} Rg8 {[%emt 0:03:15]} 27. Qd4 {[%emt 0:02:00]} Kg7 {[%emt 0:12:01]} 28. b4 {[%emt 0:06:28]} Rff8 {[%emt 0:05:52]} 29. c4 {[%emt 0:01:56]} Rd8 {[%emt 0:00:12]} 30. Qc3 {[%emt 0:00:43]} Bc6 {[%emt 0:00:06]} 31. Re1 {[%emt 0:04:39]} Kf7 {[%emt 0:00:42]} 32. Qe3 {[%emt 0:00:54]} h6 {[%emt 0:03:25]} 33. Rg3 {[%emt 0:01:48]} Rh8 {[%emt 0:00:03]} 34. Rh3 {[%emt 0:02:42]} Qc7 {[%emt 0:01:00]} 35. Qf4 {[%emt 0:01:55]} Rd4 {[%emt 0:00:40]} 36. Rc3 {[%emt 0:01:42]} Rg8 {[%emt 0:04:47]} 37. Na6 {[%emt 0:01:38]} Qc8 {[%emt 0:01:44]} 38. Qe3 {[%emt 0:00:29]} Rgd8 {[%emt 0:00:29]} 39. b5 {[%emt 0:00:43]} Bb7 {[%emt 0:01:55]} 40. Qxh6 {[%emt 0:00:00]} Rh8 {[%emt 0:00:00]} 41. Qg5 {[%emt 0:02:59]} Qd8 {[%emt 0:02:27]} 42. Qxd8 {[%emt 0:04:37]} Rdxd8 {[%emt 0:00:04]} 43. Nc5 {[%emt 0:00:32]} Ba8 {[%emt 0:00:04]} 44. Nxa4 {[%emt 0:02:00]} Rxh4 {[%emt 0:00:04]} 45. Nb6 {[%emt 0:00:42]} e3 {[%emt 0:06:04]} 46. Nxa8 {[%emt 0:04:11]} Rxa8 {[%emt 0:00:04]} 47. a3 {[%emt 0:04:05]} Rah8 {[%emt 0:01:10]} 48. fxe3 {[%emt 0:01:35]} Ke7 {[%emt 0:02:18]} 49. c5 {[%emt 0:01:34]} Kd7 {[%emt 0:00:03]} 50. Rd1+ {[%emt 0:00:56]} Kc8 {[%emt 0:00:24]} 51. Kf2 {[%emt 0:01:21]} Rg4 {[%emt 0:00:19]} 52. Rd4 {[%emt 0:01:12]} Rg5 {[%emt 0:00:04]} 53. Rcd3 {[%emt 0:00:52]} Rf8 {[%emt 0:00:37]} 54. a4 {[%emt 0:01:39]} Rf7 {[%emt 0:01:42]} 55. c6 {[%emt 0:00:31]} Rg4 {[%emt 0:00:38]} 56. Rd8+ {[%emt 0:01:02]} Kc7 {[%emt 0:00:03]} 57. R8d7+ {[%emt 0:00:48]} Rxd7 {[%emt 0:00:06]} 58. Rxd7+ {[%emt 0:01:10]} Kb8 {[%emt 0:00:26]} 59. Rd4 {[%emt 0:00:20]} Rg5 {[%emt 0:00:23]} 60. b6 {[%emt 0:00:17]} 1-0

[Event "RUS-ch Girls U21 2020"]
[Site "Moscow"]
[Date "2020.12.13"]
[Round "6.1"]
[White "Protopopova, Anastasiya"]
[Black "Borisova, Ekaterina"]
[Result "0-1"]
[ECO "E46"]
[WhiteElo "2267"]
[BlackElo "2308"]
[Annotator "ChessBase"]
[PlyCount "94"]
[EventDate "2020.12.08"]
[EventType "tourn"]
[EventCountry "RUS"]
[SourceTitle "playchess.com"]
[Source "ChessBase"]
[SourceQuality "1"]
[TimeControl "40/5400+30:1800+30"]

1. d4 {[%emt 0:00:00]} Nf6 {[%emt 0:00:00]} 2. c4 {[%emt 0:00:00]} e6 {[%emt 0:00:00]} 3. Nc3 {[%emt 0:00:00]} Bb4 {[%emt 0:00:00]} 4. e3 {[%emt 0:00:06]} O-O {[%emt 0:00:00]} 5. Nge2 {[%emt 0:00:09]} d5 {[%emt 0:00:00]} 6. cxd5 {[%emt 0:00:29]} exd5 {[%emt 0:00:00]} 7. g3 {[%emt 0:00:04]} Nbd7 {[%emt 0:01:10]} 8. Bg2 {[%emt 0:00:16]} Nb6 {[%emt 0:00:05]} 9. O-O {[%emt 0:00:41]} a5 {[%emt 0:00:02]} 10. f3 {[%emt 0:09:14]} c5 {[%emt 0:12:06]} 11. a3 {[%emt 0:01:40]} cxd4 {[%emt 0:00:21]} 12. exd4 {[%emt 0:04:03]} Be7 {[%emt 0:08:53]} 13. a4 {[%emt 0:01:26]} Ne8 {[%emt 0:03:48]} 14. g4 {[%emt 0:09:24]} Nc7 {[%emt 0:04:31]} 15. h3 {[%emt 0:07:09]} f5 {[%emt 0:02:21]} 16. Qb3 {[%emt 0:10:14]} Ra6 17. Nf4 {[%emt 0:05:02]} Kh8 {[%emt 0:09:25]} 18. Rd1 {[%emt 0:06:00]} Bd6 {[%emt 0:03:54]} 19. Nce2 {[%emt 0:05:44]} Ne6 {[%emt 0:08:24]} 20. Nd3 {[%emt 0:01:13]} Qf6 {[%emt 0:05:32]} 21. Qc3 {[%emt 0:04:08]} Bd7 {[%emt 0:04:52]} 22. b3 {[%emt 0:00:12]} Rc8 {[%emt 0:09:46]} 23. Qb2 {[%emt 0:00:14]} Be8 {[%emt 0:01:02]} 24. Bd2 Nd7 {[%emt 0:02:45]} 25. Rac1 {[%emt 0:03:04]} Rd8 {[%emt 0:00:27]} 26. Rc2 {[%emt 0:06:04]} Bg6 {[%emt 0:00:40]} 27. Be3 {[%emt 0:12:21]} Raa8 {[%emt 0:04:45]} 28. Rcc1 {[%emt 0:01:28]} fxg4 {[%emt 0:02:08]} 29. fxg4 {[%emt 0:01:43]} Be4 {[%emt 0:00:03]} 30. Rf1 {[%emt 0:02:12]} Qe7 {[%emt 0:00:04]} 31. Nef4 {[%emt 0:01:44]} Nxf4 {[%emt 0:01:49]} 32. Nxf4 {[%emt 0:00:14]} Ba3 {[%emt 0:00:59]} 33. Qf2 {[%emt 0:01:05]} Bxc1 {[%emt 0:00:08]} 34. Bxc1 {[%emt 0:00:08]} Bxg2 {[%emt 0:02:30]} 35. Qxg2 {[%emt 0:00:03]} Nf6 {[%emt 0:00:43]} 36. Nd3 {[%emt 0:00:55]} Qe4 {[%emt 0:01:22]} 37. Rf3 {[%emt 0:01:28]} Rdc8 {[%emt 0:05:03]} 38. Bb2 {[%emt 0:01:54]} Rc2 {[%emt 0:01:41]} 39. Qf1 {[%emt 0:02:20]} Qe2 {[%emt 0:00:29]} 40. Qxe2 {[%emt 0:00:00]} Rxe2 {[%emt 0:00:00]} 41. Ba3 h6 {[%emt 0:01:52]} 42. Ne5 {[%emt 0:01:07]} Rc8 {[%emt 0:08:56]} 43. h4 {[%emt 0:02:33]} Rcc2 {[%emt 0:00:30]} 44. g5 {[%emt 0:00:29]} Re1+ {[%emt 0:00:00]} 45. Rf1 {[%emt 0:00:00]} Rxf1+ {[%emt 0:00:26]} 46. Kxf1 {[%emt 0:01:23]} Ne4 {[%emt 0:00:17]} 47. gxh6 gxh6 0-1

[Event "RUS-ch Girls U21 2020"]
[Site "Moscow"]
[Date "2020.12.13"]
[Round "6.2"]
[White "Nosacheva, Mariya"]
[Black "Kochukova, Anna"]
[Result "1-0"]
[ECO "B47"]
[WhiteElo "2243"]
[BlackElo "2111"]
[Annotator "ChessBase"]
[PlyCount "61"]
[EventDate "2020.12.08"]
[EventType "tourn"]
[EventCountry "RUS"]
[SourceTitle "playchess.com"]
[Source "ChessBase"]
[SourceQuality "1"]
[TimeControl "40/5400+30:1800+30"]

1. e4 {[%emt 0:00:00]} c5 {[%emt 0:00:00]} 2. Nf3 {[%emt 0:00:00]} e6 {[%emt 0:00:00]} 3. d4 {[%emt 0:00:00]} cxd4 {[%emt 0:00:02]} 4. Nxd4 {[%emt 0:00:00]} Nc6 {[%emt 0:00:17]} 5. Nc3 {[%emt 0:00:01]} Qc7 {[%emt 0:00:14]} 6. g4 {[%emt 0:01:56]} a6 {[%emt 0:03:08]} 7. h4 {[%emt 0:00:22]} b5 {[%emt 0:04:51]} 8. Nxc6 {[%emt 0:00:29]} dxc6 {[%emt 0:01:50]} 9. Qf3 {[%emt 0:00:16]} Bb7 {[%emt 0:00:42]} 10. Bf4 {[%emt 0:01:54]} Bd6 {[%emt 0:04:34]} 11. Bxd6 {[%emt 0:00:14]} Qxd6 {[%emt 0:00:02]} 12. Bd3 {[%emt 0:02:02]} Ne7 {[%emt 0:05:16]} 13. O-O-O {[%emt 0:01:41]} Qc7 {[%emt 0:00:57]} 14. h5 {[%emt 0:05:15]} b4 {[%emt 0:03:47]} 15. Na4 {[%emt 0:04:06]} c5 {[%emt 0:01:27]} 16. b3 {[%emt 0:00:31]} Nc6 {[%emt 0:01:07]} 17. Qe3 {[%emt 0:10:39]} Ne5 {[%emt 0:08:35]} 18. Be2 {[%emt 0:14:49]} Rc8 {[%emt 0:15:43]} 19. f4 {[%emt 0:06:58]} Nd7 {[%emt 0:08:40]} 20. g5 {[%emt 0:06:52]} Qc6 {[%emt 0:04:49]} 21. Rhe1 {[%emt 0:01:12]} Nb6 {[%emt 0:05:29]} 22. Nxb6 {[%emt 0:03:19]} Qxb6 {[%emt 0:00:02]} 23. f5 {[%emt 0:00:23]} O-O {[%emt 0:12:23]} 24. f6 {[%emt 0:01:55]} Rfd8 {[%emt 0:04:02]} 25. fxg7 {[%emt 0:03:27]} Rd4 {[%emt 0:02:18]} 26. g6 {[%emt 0:00:14]} fxg6 {[%emt 0:06:59]} 27. hxg6 {[%emt 0:00:09]} Kxg7 {[%emt 0:02:22]} 28. gxh7 {[%emt 0:04:57]} Kh8 {[%emt 0:00:03]} 29. Qg5 {[%emt 0:02:50]} Qc7 {[%emt 0:00:22]} 30. Rg1 {[%emt 0:00:25]} Rxd1+ {[%emt 0:02:27]} 31. Bxd1 {[%emt 0:00:06]} 1-0